[Event "*** Titled Tuesday Blitz"]
[Site "Chess.com"]
[Date "2021.02.16"]
[Round "1"]
[White "JoliyRoger"]
[Black "Msb2"]
[Result "0-1"]
[WhiteElo "2431"]
[BlackElo "2848"]
[TimeControl "180+1"]
[EndTime "10:04:55 PST"]
[Termination "Msb2 won by resignation"]

1. Nf3 {[%clk 0:03:00.9]} 1... d5 {[%clk 0:02:59.9]} 2. d4 {[%clk 0:03:00.3]}
2... Nf6 {[%clk 0:02:59.9]} 3. c4 {[%clk 0:02:59]} 3... e6 {[%clk 0:02:58.9]} 4.
cxd5 {[%clk 0:02:57.3]} 4... exd5 {[%clk 0:02:59.8]} 5. Nc3 {[%clk 0:02:57.8]}
5... c6 {[%clk 0:02:59.9]} 6. Bg5 {[%clk 0:02:58.3]} 6... h6 {[%clk 0:02:57.5]}
7. Bh4 {[%clk 0:02:58.1]} 7... Bf5 {[%clk 0:02:55.5]} 8. e3 {[%clk 0:02:58.5]}
8... Nbd7 {[%clk 0:02:53.9]} 9. Bd3 {[%clk 0:02:58.6]} 9... Bxd3 {[%clk
0:02:53.3]} 10. Qxd3 {[%clk 0:02:59.5]} 10... Be7 {[%clk 0:02:52.5]} 11. O-O
{[%clk 0:02:59.2]} 11... O-O {[%clk 0:02:53.1]} 12. Rab1 {[%clk 0:02:59.7]}
12... Re8 {[%clk 0:02:22.6]} 13. b4 {[%clk 0:02:55.4]} 13... a6 {[%clk
0:02:00.2]} 14. a4 {[%clk 0:02:53.7]} 14... Qc7 {[%clk 0:01:45.8]} 15. b5 {[%clk
0:02:44.7]} 15... axb5 {[%clk 0:01:46.7]} 16. axb5 {[%clk 0:02:44.4]} 16... Ra3
{[%clk 0:01:44.2]} 17. Bg3 {[%clk 0:02:01.7]} 17... Qa5 {[%clk 0:01:40.7]} 18.
Rfc1 {[%clk 0:01:41.7]} 18... Ne4 {[%clk 0:01:39.2]} 19. bxc6 {[%clk 0:01:09]}
19... bxc6 {[%clk 0:01:37.5]} 20. Rb7 {[%clk 0:00:53.4]} 20... Ndf6 {[%clk
0:01:32.5]} 21. Nd2 {[%clk 0:00:50.8]} 21... Rxc3 {[%clk 0:01:29]} 22. Rxc3
{[%clk 0:00:50.6]} 22... Qxc3 {[%clk 0:01:27.7]} 23. Qxc3 {[%clk 0:00:50.5]}
23... Nxc3 {[%clk 0:01:28.6]} 24. Rc7 {[%clk 0:00:51.2]} 24... Nce4 {[%clk
0:01:19.3]} 0-1

[Event "*** Titled Tuesday Blitz"]
[Site "Chess.com"]
[Date "2021.02.16"]
[Round "1"]
[White "Taran2004"]
[Black "Infernal_XaM"]
[Result "0-1"]
[WhiteElo "2422"]
[BlackElo "2817"]
[TimeControl "180+1"]
[EndTime "10:05:08 PST"]
[Termination "Infernal_XaM won by checkmate"]

1. e4 {[%clk 0:03:00.8]} 1... e5 {[%clk 0:02:59.9]} 2. Nf3 {[%clk 0:03:00.5]}
2... Nc6 {[%clk 0:02:59.7]} 3. d4 {[%clk 0:03:00.7]} 3... exd4 {[%clk
0:02:59.5]} 4. Nxd4 {[%clk 0:03:01.6]} 4... Nf6 {[%clk 0:02:58.5]} 5. Nxc6
{[%clk 0:03:00.4]} 5... bxc6 {[%clk 0:02:58.4]} 6. e5 {[%clk 0:02:59.9]} 6...
Qe7 {[%clk 0:02:57.4]} 7. Qe2 {[%clk 0:03:00.4]} 7... Nd5 {[%clk 0:02:57.6]} 8.
h4 {[%clk 0:03:00.7]} 8... Rb8 {[%clk 0:02:55.8]} 9. g3 {[%clk 0:02:53.6]} 9...
Qc5 {[%clk 0:02:44.4]} 10. Bg2 {[%clk 0:02:39.7]} 10... Nb4 {[%clk 0:02:43.5]}
11. Nc3 {[%clk 0:02:38.7]} 11... Ba6 {[%clk 0:02:42.8]} 12. Qe4 {[%clk
0:02:15.8]} 12... Be7 {[%clk 0:02:25.4]} 13. Be3 {[%clk 0:02:14.2]} 13... Qa5
{[%clk 0:02:20.9]} 14. Bd2 {[%clk 0:02:07.4]} 14... O-O {[%clk 0:01:52.9]} 15.
a3 {[%clk 0:01:55.8]} 15... d5 {[%clk 0:01:51.6]} 16. exd6 {[%clk 0:01:48.1]}
16... Bxd6 {[%clk 0:01:51.4]} 17. O-O-O {[%clk 0:01:48.1]} 17... Rfe8 {[%clk
0:01:47.7]} 18. Qg4 {[%clk 0:01:38.4]} 18... Nd3+ {[%clk 0:01:20.1]} 19. cxd3
{[%clk 0:01:27.4]} 19... Qxa3 {[%clk 0:00:55.5]} 20. bxa3 {[%clk 0:01:10.7]}
20... Bxa3+ {[%clk 0:00:55.2]} 21. Kc2 {[%clk 0:01:10.2]} 21... Rb2+ {[%clk
0:00:55.8]} 22. Kc1 {[%clk 0:01:09.9]} 22... Bxd3 {[%clk 0:00:56.4]} 23. Bh6
{[%clk 0:00:59.1]} 23... Rxf2# {[%clk 0:00:53.9]} 0-1

[Event "*** Titled Tuesday Blitz"]
[Site "Chess.com"]
[Date "2021.02.16"]
[Round "1"]
[White "biostatistician"]
[Black "Kingsman132"]
[Result "0-1"]
[WhiteElo "2609"]
[BlackElo "2364"]
[TimeControl "180+1"]
[EndTime "10:05:11 PST"]
[Termination "Kingsman132 won by resignation"]

1. d4 {[%clk 0:02:59.3]} 1... g6 {[%clk 0:02:56.7]} 2. c4 {[%clk 0:02:58.6]}
2... Bg7 {[%clk 0:02:57.6]} 3. Nc3 {[%clk 0:02:59.2]} 3... Nf6 {[%clk
0:02:58.5]} 4. e4 {[%clk 0:02:58.7]} 4... O-O {[%clk 0:02:59.4]} 5. e5 {[%clk
0:02:57.1]} 5... Ne8 {[%clk 0:02:59.1]} 6. f4 {[%clk 0:02:50.7]} 6... d6 {[%clk
0:02:59.6]} 7. Nf3 {[%clk 0:02:50.2]} 7... c5 {[%clk 0:02:59.1]} 8. d5 {[%clk
0:02:49.3]} 8... Bg4 {[%clk 0:02:57.3]} 9. exd6 {[%clk 0:02:28.6]} 9... exd6
{[%clk 0:02:54.4]} 10. Bd3 {[%clk 0:02:23.8]} 10... Bd4 {[%clk 0:02:44.1]} 11.
h3 {[%clk 0:01:54.6]} 11... Bxf3 {[%clk 0:02:38.2]} 12. Qxf3 {[%clk 0:01:55.5]}
12... Nf6 {[%clk 0:02:35.1]} 13. Bd2 {[%clk 0:01:53.8]} 13... Re8+ {[%clk
0:02:33.1]} 14. Kd1 {[%clk 0:01:54.1]} 14... Na6 {[%clk 0:02:28.9]} 15. a3
{[%clk 0:01:53.4]} 15... Nc7 {[%clk 0:02:18.4]} 16. Kc2 {[%clk 0:01:51.9]} 16...
a6 {[%clk 0:02:14.3]} 17. g4 {[%clk 0:01:44.3]} 17... b5 {[%clk 0:02:13.9]} 18.
g5 {[%clk 0:01:43.6]} 18... b4 {[%clk 0:02:07.3]} 19. Ne4 {[%clk 0:01:28.4]}
19... Nxe4 {[%clk 0:02:06.1]} 20. Bxe4 {[%clk 0:01:29.1]} 20... Rb8 {[%clk
0:02:01.3]} 21. axb4 {[%clk 0:01:04.2]} 21... cxb4 {[%clk 0:01:59.7]} 22. Kb3
{[%clk 0:01:04.2]} 22... a5 {[%clk 0:01:55.4]} 23. Rxa5 {[%clk 0:01:00.5]} 23...
f5 {[%clk 0:01:44.3]} 24. gxf6 {[%clk 0:00:32.9]} 24... Qxf6 {[%clk 0:01:42.9]}
25. Ra7 {[%clk 0:00:27.7]} 25... Bxa7 {[%clk 0:01:41.2]} 0-1

[Event "*** Titled Tuesday Blitz"]
[Site "Chess.com"]
[Date "2021.02.16"]
[Round "1"]
[White "HouseOfDurin"]
[Black "dragos420"]
[Result "0-1"]
[WhiteElo "2122"]
[BlackElo "2505"]
[TimeControl "180+1"]
[EndTime "10:05:12 PST"]
[Termination "dragos420 won by resignation"]

1. d4 {[%clk 0:03:00.9]} 1... Nf6 {[%clk 0:02:59.6]} 2. Bg5 {[%clk 0:03:01.3]}
2... d5 {[%clk 0:02:55.2]} 3. Bxf6 {[%clk 0:03:01]} 3... gxf6 {[%clk 0:02:52.1]}
4. e3 {[%clk 0:03:01.9]} 4... c5 {[%clk 0:02:51.8]} 5. c4 {[%clk 0:03:01.7]}
5... e6 {[%clk 0:02:52]} 6. dxc5 {[%clk 0:02:56.4]} 6... dxc4 {[%clk 0:02:51.5]}
7. Qxd8+ {[%clk 0:02:55.4]} 7... Kxd8 {[%clk 0:02:52.4]} 8. Bxc4 {[%clk
0:02:55.3]} 8... Bxc5 {[%clk 0:02:51.9]} 9. Nc3 {[%clk 0:02:55.8]} 9... Bd7
{[%clk 0:02:46.6]} 10. O-O-O {[%clk 0:02:55.1]} 10... Ke7 {[%clk 0:02:37.7]} 11.
Ne4 {[%clk 0:02:43.8]} 11... Bb6 {[%clk 0:02:35]} 12. Nd6 {[%clk 0:02:36.3]}
12... Bc6 {[%clk 0:02:32.3]} 13. Bb5 {[%clk 0:02:12.9]} 13... Bxg2 {[%clk
0:02:29]} 14. Nc4 {[%clk 0:01:49]} 14... Bxh1 {[%clk 0:02:26.7]} 15. Nxb6 {[%clk
0:01:49]} 15... axb6 {[%clk 0:02:27.6]} 16. f3 {[%clk 0:01:47.7]} 16... Nc6
{[%clk 0:02:25.7]} 17. Be2 {[%clk 0:01:44.6]} 17... Bg2 {[%clk 0:02:23.6]} 18.
a3 {[%clk 0:01:40.4]} 18... Rad8 {[%clk 0:02:21.7]} 19. Re1 {[%clk 0:01:29.8]}
19... Rd5 {[%clk 0:02:20.8]} 20. Bd1 {[%clk 0:01:23.4]} 20... Rhd8 {[%clk
0:02:18.4]} 21. Bc2 {[%clk 0:01:10.5]} 21... Rh5 {[%clk 0:02:14.8]} 22. h3
{[%clk 0:00:46.7]} 22... Bxh3 {[%clk 0:02:13.6]} 23. e4 {[%clk 0:00:42.8]} 23...
e5 {[%clk 0:02:06.2]} 24. Bd1 {[%clk 0:00:35.5]} 24... Be6 {[%clk 0:02:03.1]}
25. f4 {[%clk 0:00:35.3]} 25... Rh4 {[%clk 0:02:01]} 26. f5 {[%clk 0:00:35.2]}
26... Bc4 {[%clk 0:01:57.9]} 27. Nf3 {[%clk 0:00:33.2]} 27... Rf4 {[%clk
0:01:57.5]} 28. Re3 {[%clk 0:00:31.4]} 28... Nd4 {[%clk 0:01:55]} 29. Nd2 {[%clk
0:00:29.7]} 29... Ba6 {[%clk 0:01:52.7]} 30. b4 {[%clk 0:00:28.6]} 30... Rc8+
{[%clk 0:01:50.5]} 31. Kb2 {[%clk 0:00:28.2]} 31... Rf2 {[%clk 0:01:50]} 0-1

[Event "*** Titled Tuesday Blitz"]
[Site "Chess.com"]
[Date "2021.02.16"]
[Round "1"]
[White "noamapplesauce"]
[Black "alejogarcia1999"]
[Result "0-1"]
[WhiteElo "2113"]
[BlackElo "2503"]
[TimeControl "180+1"]
[EndTime "10:05:17 PST"]
[Termination "alejogarcia1999 won by resignation"]

1. e4 {[%clk 0:02:59.1]} 1... c5 {[%clk 0:02:59.7]} 2. Nf3 {[%clk 0:02:57.3]}
2... e6 {[%clk 0:02:59.9]} 3. d3 {[%clk 0:02:57.2]} 3... Nc6 {[%clk 0:02:58.8]}
4. g3 {[%clk 0:02:57.6]} 4... g6 {[%clk 0:02:58.9]} 5. Bg2 {[%clk 0:02:57.9]}
5... Bg7 {[%clk 0:02:59.1]} 6. c3 {[%clk 0:02:58.6]} 6... Nge7 {[%clk
0:02:59.1]} 7. Be3 {[%clk 0:02:58.7]} 7... d6 {[%clk 0:02:57.4]} 8. O-O {[%clk
0:02:59]} 8... O-O {[%clk 0:02:57.2]} 9. a4 {[%clk 0:02:50.3]} 9... b6 {[%clk
0:02:54.3]} 10. Na3 {[%clk 0:02:47.9]} 10... Bb7 {[%clk 0:02:53.7]} 11. d4
{[%clk 0:02:44.2]} 11... cxd4 {[%clk 0:02:52.7]} 12. Nxd4 {[%clk 0:02:44.9]}
12... Rc8 {[%clk 0:02:47.9]} 13. Nab5 {[%clk 0:02:36.8]} 13... a6 {[%clk
0:02:45.1]} 14. Nxc6 {[%clk 0:02:36.1]} 14... Rxc6 {[%clk 0:02:44.2]} 15. Nd4
{[%clk 0:02:32.6]} 15... Rc8 {[%clk 0:02:43.4]} 16. Qb3 {[%clk 0:02:33.2]} 16...
d5 {[%clk 0:02:38.9]} 17. Rfd1 {[%clk 0:02:20.2]} 17... Qc7 {[%clk 0:02:31.9]}
18. Ne2 {[%clk 0:02:06.7]} 18... dxe4 {[%clk 0:02:23.1]} 19. Bxb6 {[%clk
0:02:04.5]} 19... Qb8 {[%clk 0:02:13.8]} 20. Rd7 {[%clk 0:01:55.2]} 20... Bd5
{[%clk 0:02:06.5]} 21. Qb4 {[%clk 0:01:42.3]} 21... Nc6 {[%clk 0:02:06.2]} 22.
Qc5 {[%clk 0:01:33.6]} 22... Ne5 {[%clk 0:02:04.2]} 23. Rc7 {[%clk 0:01:27.5]}
23... Nd3 {[%clk 0:01:57.1]} 24. Qa5 {[%clk 0:01:08.6]} 24... Rxc7 {[%clk
0:01:51.5]} 25. Bxc7 {[%clk 0:01:08.6]} 25... Qxb2 {[%clk 0:01:52.2]} 26. Rf1
{[%clk 0:00:40.2]} 26... Qxe2 {[%clk 0:01:50.9]} 27. Qxa6 {[%clk 0:00:30.5]}
27... Bxc3 {[%clk 0:01:50.3]} 28. Bd6 {[%clk 0:00:21.5]} 28... Ra8 {[%clk
0:01:48.2]} 29. Qb5 {[%clk 0:00:17.3]} 29... Bd4 {[%clk 0:01:45.8]} 0-1

[Event "*** Titled Tuesday Blitz"]
[Site "Chess.com"]
[Date "2021.02.16"]
[Round "1"]
[White "IceBelka"]
[Black "bakki78"]
[Result "0-1"]
[WhiteElo "2383"]
[BlackElo "2722"]
[TimeControl "180+1"]
[EndTime "10:05:18 PST"]
[Termination "bakki78 won by checkmate"]

1. e4 {[%clk 0:02:57.3]} 1... c5 {[%clk 0:02:59.4]} 2. Nf3 {[%clk 0:02:56.3]}
2... Nc6 {[%clk 0:02:59]} 3. d4 {[%clk 0:02:56.8]} 3... cxd4 {[%clk 0:02:58.4]}
4. Nxd4 {[%clk 0:02:57.7]} 4... Nf6 {[%clk 0:02:58.5]} 5. Nc3 {[%clk 0:02:57.6]}
5... d6 {[%clk 0:02:58.8]} 6. Bg5 {[%clk 0:02:56.2]} 6... e6 {[%clk 0:02:58.2]}
7. Qd2 {[%clk 0:02:55.2]} 7... a6 {[%clk 0:02:57.9]} 8. O-O-O {[%clk 0:02:53.9]}
8... Bd7 {[%clk 0:02:58.2]} 9. f4 {[%clk 0:02:51.8]} 9... Be7 {[%clk 0:02:57.4]}
10. Nf3 {[%clk 0:02:49.8]} 10... b5 {[%clk 0:02:56.6]} 11. Bxf6 {[%clk
0:02:47.7]} 11... gxf6 {[%clk 0:02:55.8]} 12. Kb1 {[%clk 0:02:41.6]} 12... Qa5
{[%clk 0:02:48.5]} 13. f5 {[%clk 0:02:37.9]} 13... Rc8 {[%clk 0:02:47.3]} 14.
fxe6 {[%clk 0:02:34.2]} 14... fxe6 {[%clk 0:02:46.8]} 15. Bd3 {[%clk 0:02:30.3]}
15... Nb4 {[%clk 0:02:45.1]} 16. a3 {[%clk 0:02:12.7]} 16... Nc6 {[%clk
0:02:44.5]} 17. Qh6 {[%clk 0:02:02.8]} 17... b4 {[%clk 0:02:44.4]} 18. axb4
{[%clk 0:02:01.7]} 18... Qxb4 {[%clk 0:02:44.2]} 19. Nd2 {[%clk 0:01:44.7]}
19... Nd4 {[%clk 0:02:34.5]} 20. Na2 {[%clk 0:01:28.5]} 20... Qb6 {[%clk
0:02:32.9]} 21. Nc4 {[%clk 0:01:26.7]} 21... Qc5 {[%clk 0:02:28.9]} 22. c3
{[%clk 0:01:14.3]} 22... Nb3 {[%clk 0:02:24.7]} 23. e5 {[%clk 0:01:02.1]} 23...
fxe5 {[%clk 0:02:20.6]} 24. Bxh7 {[%clk 0:00:50]} 24... Kd8 {[%clk 0:02:17]} 25.
Nxd6 {[%clk 0:00:27.1]} 25... Bxd6 {[%clk 0:02:13.9]} 26. Qg7 {[%clk 0:00:27.3]}
26... Kc7 {[%clk 0:01:51.7]} 27. Nb4 {[%clk 0:00:26.5]} 27... Ra8 {[%clk
0:01:51.6]} 28. Bc2 {[%clk 0:00:25.6]} 28... Rhg8 {[%clk 0:01:46]} 29. Nxa6+
{[%clk 0:00:19.4]} 29... Rxa6 {[%clk 0:01:44.5]} 30. Qxg8 {[%clk 0:00:16.7]}
30... Ra1# {[%clk 0:01:44.2]} 0-1

[Event "*** Titled Tuesday Blitz"]
[Site "Chess.com"]
[Date "2021.02.16"]
[Round "1"]
[White "ybruned"]
[Black "Berardino"]
[Result "1-0"]
[WhiteElo "2321"]
[BlackElo "2589"]
[TimeControl "180+1"]
[EndTime "10:05:28 PST"]
[Termination "ybruned won by resignation"]

1. b3 {[%clk 0:03:00]} 1... c5 {[%clk 0:02:59.6]} 2. Bb2 {[%clk 0:02:59.7]} 2...
d6 {[%clk 0:03:00]} 3. Nf3 {[%clk 0:03:00]} 3... e5 {[%clk 0:03:00.2]} 4. e3
{[%clk 0:02:59.2]} 4... f5 {[%clk 0:02:58.9]} 5. d4 {[%clk 0:02:55.6]} 5... cxd4
{[%clk 0:02:58.7]} 6. exd4 {[%clk 0:02:55]} 6... e4 {[%clk 0:02:59.2]} 7. Nfd2
{[%clk 0:02:55.1]} 7... d5 {[%clk 0:02:59.4]} 8. c4 {[%clk 0:02:54.8]} 8... Nf6
{[%clk 0:02:59.5]} 9. Nc3 {[%clk 0:02:54.1]} 9... Nc6 {[%clk 0:02:59.8]} 10.
Nxd5 {[%clk 0:02:52.8]} 10... Nxd5 {[%clk 0:02:59.5]} 11. cxd5 {[%clk
0:02:53.5]} 11... Nb4 {[%clk 0:02:59.4]} 12. Bc4 {[%clk 0:02:37.5]} 12... Nxd5
{[%clk 0:02:57.8]} 13. O-O {[%clk 0:02:37]} 13... Be7 {[%clk 0:02:52.9]} 14.
Nxe4 {[%clk 0:02:27.1]} 14... Be6 {[%clk 0:02:26.7]} 15. Nc3 {[%clk 0:02:20.1]}
15... Nxc3 {[%clk 0:02:18.9]} 16. Bxc3 {[%clk 0:02:18.9]} 16... Bxc4 {[%clk
0:02:09.7]} 17. bxc4 {[%clk 0:02:17.2]} 17... O-O {[%clk 0:02:10.6]} 18. d5
{[%clk 0:02:08.4]} 18... Rc8 {[%clk 0:02:05.4]} 19. Qd4 {[%clk 0:02:05.6]} 19...
Bf6 {[%clk 0:02:05.4]} 20. Qd3 {[%clk 0:02:06.1]} 20... Bxc3 {[%clk 0:01:47.8]}
21. Qxc3 {[%clk 0:02:05.4]} 21... b5 {[%clk 0:01:48.3]} 22. c5 {[%clk
0:01:24.1]} 22... Qxd5 {[%clk 0:01:46.6]} 23. Rfc1 {[%clk 0:01:24.8]} 23... Rc6
{[%clk 0:01:44.3]} 24. Rc2 {[%clk 0:01:23.7]} 24... Rfc8 {[%clk 0:01:43]} 25.
Rac1 {[%clk 0:01:22.7]} 25... h6 {[%clk 0:01:35]} 26. h3 {[%clk 0:01:21.8]}
26... a6 {[%clk 0:01:31.3]} 27. Qb4 {[%clk 0:01:18.8]} 27... Kh7 {[%clk
0:01:30.3]} 28. a4 {[%clk 0:01:16.6]} 28... Rb8 {[%clk 0:01:26.2]} 29. axb5
{[%clk 0:01:12.9]} 29... Rxb5 {[%clk 0:01:26.1]} 30. Qa4 {[%clk 0:01:12.7]}
30... Qd3 {[%clk 0:01:01.5]} 31. Rc3 {[%clk 0:01:08.3]} 31... Qd4 {[%clk
0:00:55.2]} 32. Qxd4 {[%clk 0:01:07]} 1-0

[Event "*** Titled Tuesday Blitz"]
[Site "Chess.com"]
[Date "2021.02.16"]
[Round "1"]
[White "mr_gustavo"]
[Black "GM_Crest"]
[Result "0-1"]
[WhiteElo "2402"]
[BlackElo "2757"]
[TimeControl "180+1"]
[EndTime "10:05:32 PST"]
[Termination "GM_Crest won by checkmate"]

1. e4 {[%clk 0:03:00.9]} 1... e6 {[%clk 0:02:57.7]} 2. d4 {[%clk 0:03:00.4]}
2... d5 {[%clk 0:02:57.5]} 3. Nc3 {[%clk 0:02:59.5]} 3... Bb4 {[%clk 0:02:55.5]}
4. e5 {[%clk 0:02:58.7]} 4... c5 {[%clk 0:02:55.3]} 5. a3 {[%clk 0:02:58.7]}
5... Bxc3+ {[%clk 0:02:54.8]} 6. bxc3 {[%clk 0:02:58.6]} 6... Qc7 {[%clk
0:02:55.3]} 7. Qg4 {[%clk 0:02:53.9]} 7... f6 {[%clk 0:02:54.5]} 8. Bf4 {[%clk
0:02:47.7]} 8... cxd4 {[%clk 0:02:41.4]} 9. Ne2 {[%clk 0:02:46.6]} 9... fxe5
{[%clk 0:02:27.2]} 10. Bg3 {[%clk 0:02:46.7]} 10... Nf6 {[%clk 0:02:02.3]} 11.
Qg5 {[%clk 0:02:39.9]} 11... Nc6 {[%clk 0:01:59.3]} 12. cxd4 {[%clk 0:02:36.8]}
12... Ne4 {[%clk 0:01:52.5]} 13. Qh5+ {[%clk 0:02:16.1]} 13... g6 {[%clk
0:01:50.6]} 14. Qf3 {[%clk 0:02:09.7]} 14... Qa5+ {[%clk 0:01:43.5]} 15. c3
{[%clk 0:02:06.3]} 15... exd4 {[%clk 0:01:43.4]} 16. Rc1 {[%clk 0:01:39.8]}
16... e5 {[%clk 0:01:31.7]} 17. Qd3 {[%clk 0:01:22.9]} 17... Bf5 {[%clk
0:01:27.5]} 18. Bxe5 {[%clk 0:01:17.3]} 18... Nc5 {[%clk 0:00:58.1]} 19. Qg3
{[%clk 0:01:11.1]} 19... Nd3+ {[%clk 0:00:56.3]} 20. Qxd3 {[%clk 0:01:11.6]}
20... Bxd3 {[%clk 0:00:55.2]} 21. Bxh8 {[%clk 0:01:12.5]} 21... Kd7 {[%clk
0:00:51.4]} 22. Bxd4 {[%clk 0:01:10.4]} 22... Bxe2 {[%clk 0:00:48.8]} 23. Kxe2
{[%clk 0:01:07.2]} 23... Nxd4+ {[%clk 0:00:45.8]} 24. cxd4 {[%clk 0:01:06.6]}
24... Re8+ {[%clk 0:00:42.3]} 25. Kd1 {[%clk 0:01:06.6]} 25... Qa4+ {[%clk
0:00:40.3]} 26. Rc2 {[%clk 0:01:06.6]} 26... Qxd4+ {[%clk 0:00:39.5]} 27. Rd2
{[%clk 0:01:05.9]} 27... Qa1+ {[%clk 0:00:39.4]} 28. Kc2 {[%clk 0:01:06.6]}
28... Qa2+ {[%clk 0:00:38.3]} 29. Kd1 {[%clk 0:01:06.2]} 29... Qb1# {[%clk
0:00:37.8]} 0-1

[Event "*** Titled Tuesday Blitz"]
[Site "Chess.com"]
[Date "2021.02.16"]
[Round "1"]
[White "McCarthyStone"]
[Black "francyIM"]
[Result "0-1"]
[WhiteElo "2365"]
[BlackElo "2681"]
[TimeControl "180+1"]
[EndTime "10:05:39 PST"]
[Termination "francyIM won on time"]

1. Nf3 {[%clk 0:03:00.6]} 1... d5 {[%clk 0:02:56.4]} 2. c4 {[%clk 0:03:00.2]}
2... e6 {[%clk 0:02:56.5]} 3. g3 {[%clk 0:02:58.9]} 3... dxc4 {[%clk 0:02:56]}
4. Bg2 {[%clk 0:02:57.5]} 4... Nf6 {[%clk 0:02:52.1]} 5. O-O {[%clk 0:02:54.1]}
5... Nbd7 {[%clk 0:02:51.7]} 6. Qa4 {[%clk 0:02:50.8]} 6... a6 {[%clk
0:02:47.7]} 7. Qxc4 {[%clk 0:02:47.9]} 7... b5 {[%clk 0:02:48.1]} 8. Qc2 {[%clk
0:02:48.4]} 8... Bb7 {[%clk 0:02:47.4]} 9. b3 {[%clk 0:02:48.6]} 9... Bd6 {[%clk
0:02:46.7]} 10. Bb2 {[%clk 0:02:48.5]} 10... O-O {[%clk 0:02:46.7]} 11. d3
{[%clk 0:02:48.8]} 11... c5 {[%clk 0:02:44]} 12. Nbd2 {[%clk 0:02:45.6]} 12...
Rc8 {[%clk 0:02:43.7]} 13. Rac1 {[%clk 0:02:44.4]} 13... Qb6 {[%clk 0:02:43.5]}
14. Qb1 {[%clk 0:02:42.6]} 14... Rfd8 {[%clk 0:02:41.5]} 15. Qa1 {[%clk
0:02:36.4]} 15... Bf8 {[%clk 0:02:40.1]} 16. Rc2 {[%clk 0:02:31.4]} 16... Nd5
{[%clk 0:02:39.1]} 17. a3 {[%clk 0:02:28.8]} 17... Ne7 {[%clk 0:02:36.2]} 18.
Rfc1 {[%clk 0:02:27.2]} 18... Nf5 {[%clk 0:02:36.3]} 19. Ne5 {[%clk 0:02:03.3]}
19... Bxg2 {[%clk 0:02:34.6]} 20. Kxg2 {[%clk 0:02:04.2]} 20... Nf6 {[%clk
0:02:33]} 21. b4 {[%clk 0:01:55.5]} 21... Qb7+ {[%clk 0:02:27]} 22. Nef3 {[%clk
0:01:54.6]} 22... cxb4 {[%clk 0:02:25.8]} 23. Bxf6 {[%clk 0:01:34]} 23... gxf6
{[%clk 0:02:20.1]} 24. Ne4 {[%clk 0:01:30]} 24... Be7 {[%clk 0:02:12.8]} 25.
axb4 {[%clk 0:00:36.9]} 25... e5 {[%clk 0:02:12.6]} 26. Nc5 {[%clk 0:00:37.2]}
26... Bxc5 {[%clk 0:02:12.1]} 27. Rxc5 {[%clk 0:00:38.1]} 27... Rxc5 {[%clk
0:02:10.2]} 28. Rxc5 {[%clk 0:00:38.6]} 28... Nd4 {[%clk 0:02:10.1]} 29. Qa5
{[%clk 0:00:26.3]} 29... Rd7 {[%clk 0:02:06]} 30. h4 {[%clk 0:00:15.5]} 30...
Nxf3 {[%clk 0:01:59]} 31. exf3 {[%clk 0:00:16.4]} 31... Rxd3 {[%clk 0:01:59.3]}
32. Qc7 {[%clk 0:00:04.9]} 32... Qxf3+ {[%clk 0:01:58.7]} 33. Kh3 {[%clk
0:00:05.3]} 33... Qh1+ {[%clk 0:01:50.8]} 34. Kg4 {[%clk 0:00:05.2]} 34... h5+
{[%clk 0:01:50.3]} 0-1

[Event "*** Titled Tuesday Blitz"]
[Site "Chess.com"]
[Date "2021.02.16"]
[Round "1"]
[White "tlomigtlis"]
[Black "CalinGheorghiu"]
[Result "1-0"]
[WhiteElo "2613"]
[BlackElo "2313"]
[TimeControl "180+1"]
[EndTime "10:05:43 PST"]
[Termination "tlomigtlis won by checkmate"]

1. d4 {[%clk 0:03:00.9]} 1... Nf6 {[%clk 0:02:59.2]} 2. c4 {[%clk 0:02:59.9]}
2... g6 {[%clk 0:02:58.8]} 3. Nc3 {[%clk 0:02:59.3]} 3... Bg7 {[%clk 0:02:57.5]}
4. g3 {[%clk 0:02:58.6]} 4... O-O {[%clk 0:02:57]} 5. Bg2 {[%clk 0:02:58.8]}
5... d6 {[%clk 0:02:56.2]} 6. Nf3 {[%clk 0:02:58.8]} 6... Nc6 {[%clk 0:02:53.8]}
7. O-O {[%clk 0:02:58.3]} 7... e5 {[%clk 0:02:39.1]} 8. d5 {[%clk 0:02:54]} 8...
Nb8 {[%clk 0:02:37.3]} 9. e4 {[%clk 0:02:53.8]} 9... a5 {[%clk 0:02:26.6]} 10.
Ne1 {[%clk 0:02:52.4]} 10... Na6 {[%clk 0:02:24.3]} 11. Nd3 {[%clk 0:02:52.2]}
11... Nb4 {[%clk 0:02:20]} 12. Bg5 {[%clk 0:02:50.4]} 12... h6 {[%clk
0:02:18.2]} 13. Be3 {[%clk 0:02:49.1]} 13... Bd7 {[%clk 0:02:14.5]} 14. a3
{[%clk 0:02:48.2]} 14... Nxd3 {[%clk 0:02:13.5]} 15. Qxd3 {[%clk 0:02:49.1]}
15... Ng4 {[%clk 0:02:13]} 16. Bd2 {[%clk 0:02:49.2]} 16... f5 {[%clk
0:02:09.9]} 17. f4 {[%clk 0:02:49.2]} 17... exf4 {[%clk 0:02:06.9]} 18. Bxf4
{[%clk 0:02:47.6]} 18... Re8 {[%clk 0:02:02.8]} 19. Rad1 {[%clk 0:02:41.9]}
19... a4 {[%clk 0:01:47.6]} 20. exf5 {[%clk 0:02:34.3]} 20... Bxf5 {[%clk
0:01:45.7]} 21. Be4 {[%clk 0:02:34.7]} 21... Bxe4 {[%clk 0:01:03.7]} 22. Nxe4
{[%clk 0:02:35.6]} 22... Bxb2 {[%clk 0:01:01.6]} 23. Nxd6 {[%clk 0:02:35.7]}
23... Qf6 {[%clk 0:00:49]} 24. Nxe8 {[%clk 0:02:33.8]} 24... Rxe8 {[%clk
0:00:49.8]} 25. Bc1 {[%clk 0:02:30.4]} 25... Qb6+ {[%clk 0:00:40.1]} 26. c5
{[%clk 0:02:22.8]} 26... Qxc5+ {[%clk 0:00:38.2]} 27. Kg2 {[%clk 0:02:21.2]}
27... Ne5 {[%clk 0:00:24]} 28. Qe4 {[%clk 0:02:13.7]} 28... Bxc1 {[%clk
0:00:19.9]} 29. Rxc1 {[%clk 0:02:14.6]} 29... Qxa3 {[%clk 0:00:18.4]} 30. Qf4
{[%clk 0:02:13]} 30... Qa2+ {[%clk 0:00:14.8]} 31. Qf2 {[%clk 0:01:55]} 31...
Qxd5+ {[%clk 0:00:10.8]} 32. Kg1 {[%clk 0:01:54.6]} 32... Nd3 {[%clk 0:00:10.7]}
33. Qf6 {[%clk 0:01:54.5]} 33... Nxc1 {[%clk 0:00:05.5]} 34. Qxg6+ {[%clk
0:01:53.8]} 34... Kh8 {[%clk 0:00:05.8]} 35. Qxe8+ {[%clk 0:01:52.4]} 35... Kg7
{[%clk 0:00:06.1]} 36. Qf8+ {[%clk 0:01:52.8]} 36... Kg6 {[%clk 0:00:05.6]} 37.
Rf6+ {[%clk 0:01:52.9]} 37... Kg5 {[%clk 0:00:05.2]} 38. Qxh6+ {[%clk
0:01:53.8]} 38... Kg4 {[%clk 0:00:04.3]} 39. Rf4# {[%clk 0:01:54.7]} 1-0